bitfinex/quotes_BTCUSD_20220306
["timestamp","ask_amount","ask_price","bid_price","bid_amount"]
[1646598495441,0.42297205,38806.0,38802.0,1.5815606]
[1646598495641,0.42297205,38806.0,38805.0,0.15]
[1646598495642,0.00017755,38806.0,38805.0,0.15]
[1646598495847,0.0022,38811.0,38805.0,0.15]
[1646598495848,0.26871262,38810.0,38806.0,1.1]
[1646598496040,7e-08,38813.0,38809.0,0.15]
[1646598496240,7e-08,38813.0,38812.0,0.15]
[1646598496438,0.0011,38814.0,38813.0,0.20661601]
[1646598496637,0.0011,38814.0,38813.0,0.53817661]
[1646598496839,0.0011,38814.0,38813.0,0.20661601]
[1646598497239,0.0011,38816.0,38813.0,0.56399661]
[1646598497446,0.0011,38816.0,38815.0,0.17582]
[1646598497691,0.0011,38820.0,38815.0,0.17582]
[1646598497889,0.0011,38820.0,38817.0,0.15]
[1646598499294,0.0011,38824.0,38818.0,1.486233]
[1646598499495,0.0011,38824.0,38819.0,0.15]
[1646598499796,0.0011,38824.0,38823.0,0.15]
[1646598499997,0.0011,38824.0,38823.0,0.13272995]
[1646598499998,0.37049615,38824.0,38823.0,0.13272995]
[1646598500193,0.36219615,38824.0,38823.0,0.35205961]
[1646598500399,0.36219615,38824.0,38823.0,0.37787961]
[1646598500598,0.000444,38828.0,38823.0,0.37787961]
[1646598500899,0.000444,38828.0,38827.0,0.13272995]
[1646598502836,0.00245495,38831.0,38830.0,0.17856966]
[1646598503037,0.064436,38831.0,38830.0,0.17856966]
[1646598503236,0.19055121,38831.0,38830.0,0.17856966]
[1646598504138,0.51677143,38831.0,38827.0,0.13443863]
[1646598504341,0.44235622,38831.0,38827.0,0.00170868]
[1646598504540,0.13719692,38828.0,38827.0,0.00170868]
[1646598504741,0.51511714,38828.0,38827.0,0.00170868]
[1646598504942,0.40741264,38828.0,38827.0,0.00113815]
[1646598505197,1.25350722,38828.0,38818.0,0.30831625]
[1646598505398,0.3163116,38823.0,38818.0,0.30831625]
[1646598505592,0.0517,38822.0,38818.0,0.30831625]
[1646598505994,0.064468,38821.0,38818.0,0.30831625]
[1646598506793,0.064468,38821.0,38818.0,0.1755863]
[1646598507097,0.06445563,38825.0,38820.0,0.13272995]
[1646598507098,0.064445,38825.0,38820.0,0.13272995]
[1646598507294,0.064445,38825.0,38824.0,0.13272995]
[1646598507700,0.3689718,38830.0,38826.0,1.1]
[1646598507898,0.005,38830.0,38829.0,0.13272995]
[1646598508095,0.005,38830.0,38829.0,0.45895017]
[1646598508297,0.1630153,38833.0,38830.0,1.1]
[1646598508502,0.0011,38836.0,38832.0,0.13272995]
[1646598509038,0.0011,38836.0,38835.0,0.13272995]
[1646598509240,0.0011,38836.0,38835.0,0.29052377]
[1646598509442,0.0011,38840.0,38836.0,1.1]
[1646598509644,0.2749999,38849.0,38841.0,0.386233]
[1646598509848,0.00048545,38843.0,38842.0,0.32622022]
[1646598510040,0.2499999,38849.0,38843.0,0.00048]
[1646598510244,0.0011,38852.0,38849.0,0.12348]
[1646598510440,0.0001,38852.0,38851.0,0.02405441]
[1646598510640,0.0011,38856.0,38851.0,0.37609463]
[1646598510839,0.0011,38856.0,38855.0,0.02405441]
[1646598511251,0.0011,38864.0,38861.0,0.02582]
[1646598511449,0.0011,38871.0,38864.0,0.8]
[1646598511642,0.0011,38871.0,38868.0,0.386233]
[1646598511844,0.0011,38871.0,38869.0,0.386233]
[1646598512044,0.0011,38871.0,38869.0,0.412053]
[1646598512243,0.0011,38871.0,38869.0,0.61065735]
[1646598512443,0.0011,38871.0,38869.0,0.58483735]
[1646598513292,0.92018428,38889.0,38871.0,1.486233]
[1646598513293,0.00243354,38886.0,38871.0,1.486233]
[1646598513496,0.00243354,38886.0,38874.0,0.02582]
[1646598513695,0.00243354,38886.0,38879.0,0.412053]
[1646598513893,0.00243354,38886.0,38885.0,0.386233]
[1646598514094,0.00243354,38886.0,38885.0,0.49036979]
[1646598514392,3.354e-05,38886.0,38885.0,1.04311325]
[1646598514592,0.0011,38895.0,38887.0,0.386233]
[1646598514797,0.00068465,38906.0,38889.0,1.1]
[1646598514992,0.142729,38905.0,38890.0,0.37792022]
[1646598515297,0.142729,38905.0,38868.0,0.5312595]
[1646598515298,0.15,38897.0,38878.0,0.0517]
[1646598515598,0.15,38895.0,38873.0,0.20098014]
[1646598515794,0.06178475,38884.0,38871.0,0.2453]
[1646598516095,0.06178475,38884.0,38871.0,0.5]
[1646598516096,0.52064922,38883.0,38871.0,0.5]
[1646598516342,0.32558748,38889.0,38873.0,0.16151049]
[1646598516539,0.4617,38893.0,38873.0,0.16151049]
[1646598516540,0.82296,38888.0,38873.0,0.16151049]
[1646598517040,0.82296,38888.0,38874.0,0.32622022]
[1646598517241,0.35301548,38887.0,38875.0,0.17129087]
[1646598517440,0.96067,38886.0,38874.0,0.32622022]
[1646598517639,0.96067,38886.0,38864.0,0.33907022]
[1646598517840,0.2,38884.0,38864.0,0.33907022]
[1646598518040,0.2517,38884.0,38864.0,0.33907022]
[1646598518249,0.2517,38884.0,38864.0,0.01285]
[1646598518442,0.17500119,38878.0,38866.0,0.19474516]
[1646598518641,0.2517,38884.0,38867.0,0.32509604]
[1646598518841,0.2517,38884.0,38868.0,0.32509604]
[1646598519443,0.2517,38884.0,38869.0,0.384673]
[1646598519646,0.2,38884.0,38883.0,0.58753741]
[1646598519845,0.77126,38884.0,38883.0,0.58753741]
[1646598520489,0.77126,38884.0,38883.0,0.74748145]
[1646598520690,0.77126,38884.0,38883.0,0.54461704]
[1646598520893,0.77126,38884.0,38883.0,0.384673]
[1646598521691,0.77126,38884.0,38877.0,0.384673]
[1646598521893,0.77126,38884.0,38881.0,0.16256793]
[1646598522091,0.77126,38884.0,38882.0,0.384673]
[1646598522291,0.77126,38884.0,38877.0,0.384673]
[1646598522491,0.77126,38884.0,38877.0,0.70976904]
[1646598522696,0.77126,38884.0,38879.0,0.45378123]
[1646598522891,0.77126,38884.0,38881.0,0.384673]
[1646598523090,0.77126,38884.0,38882.0,0.32509604]
[1646598523293,0.77126,38884.0,38883.0,0.54427888]
[1646598523499,0.00020921,38895.0,38884.0,0.43809]
[1646598523695,0.00020921,38895.0,38885.0,0.70976904]
[1646598523939,0.00020921,38895.0,38888.0,0.02582]
[1646598524137,0.4635,38904.0,38889.0,0.384673]
[1646598524138,0.0517,38903.0,38889.0,0.384673]
[1646598524340,0.00020091,38895.0,38891.0,0.410493]
[1646598524537,0.00020091,38895.0,38894.0,0.15678561]
[1646598524738,0.025,38908.0,38895.0,0.384673]
[1646598524937,0.025,38908.0,38889.0,0.06501]
[1646598524938,0.00020288,38909.0,38890.0,0.32953806]
[1646598525137,0.00020288,38909.0,38891.0,0.384673]
[1646598525337,0.0417,38908.0,38891.0,0.410493]
[1646598525538,0.170348,38908.0,38891.0,0.384673]
[1646598525736,0.20266703,38906.0,38891.0,0.384673]
[1646598525939,0.1746913,38903.0,38897.0,0.384673]
[1646598526142,0.2390133,38903.0,38897.0,0.384673]
[1646598526338,0.2907133,38903.0,38890.0,0.20950579]
[1646598526642,0.13771,38902.0,38887.0,0.003]
[1646598526840,0.6467,38899.0,38887.0,0.003]
[1646598527042,0.71104552,38897.0,38887.0,0.003]
[1646598527242,0.13771,38896.0,38887.0,0.003]
[1646598527687,0.064346,38895.0,38887.0,0.003]
[1646598527988,0.15,38898.0,38885.0,0.384673]
[1646598527989,0.0517,38898.0,38885.0,0.384673]
[1646598528189,0.0517,38898.0,38886.0,0.3280634]
[1646598528387,0.064323,38901.0,38884.0,0.3280634]
[1646598528588,0.07283656,38899.0,38889.0,0.16990897]
[1646598528792,0.21563508,38898.0,38889.0,0.16990897]
[1646598528988,0.21563508,38898.0,38888.0,7.523e-05]
[1646598529289,0.21654185,38892.0,38888.0,7.523e-05]
[1646598529688,0.13771,38891.0,38888.0,7.523e-05]
[1646598529891,0.0517,38890.0,38888.0,7.523e-05]
[1646598530089,0.13771,38889.0,38878.0,0.01285]
[1646598530291,0.064357,38887.0,38878.0,0.01285]
[1646598530495,0.47459387,38884.0,38878.0,0.01285]
[1646598530693,0.13771,38881.0,38878.0,0.01285]
[1646598530893,0.0517,38880.0,38878.0,0.01285]
[1646598531192,0.13771,38879.0,38878.0,0.01285]
[1646598531448,0.18941,38879.0,38878.0,0.01285]
[1646598532243,0.18941,38879.0,38878.0,19.01285]
[1646598533743,0.18941,38879.0,38878.0,19.0]
[1646598535285,0.18941,38879.0,38878.0,16.31400079]
[1646598535286,1.26330692,38879.0,38878.0,16.31400079]
[1646598535488,2.68163692,38879.0,38878.0,16.31400079]
[1646598535684,2.93730252,38879.0,38878.0,15.32865877]
[1646598535885,3.09641699,38879.0,38878.0,14.55596977]
[1646598536084,3.22515311,38879.0,38878.0,14.35596898]
[1646598537084,3.0422131,38879.0,38878.0,14.35596898]
[1646598537885,3.0422131,38879.0,38878.0,13.96965898]
[1646598538289,3.0422131,38879.0,38878.0,13.19690476]
[1646598538486,3.21694919,38879.0,38878.0,12.81052176]
[1646598538932,3.21694919,38879.0,38878.0,12.03777929]
[1646598539135,3.21694919,38879.0,38878.0,11.65140229]
[1646598539338,3.27146288,38879.0,38878.0,11.26503429]
[1646598539533,3.0422131,38879.0,38878.0,11.26751547]
[1646598539735,3.0422131,38879.0,38878.0,10.88009158]
[1646598540335,3.0422131,38879.0,38878.0,10.49375658]
[1646598540932,3.0422131,38879.0,38878.0,10.10741458]
[1646598541535,3.0422131,38879.0,38878.0,9.72106958]
[1646598541935,2.8865475,38879.0,38878.0,9.33470858]
[1646598542684,2.8865475,38879.0,38878.0,8.94834058]
[1646598543083,2.8865475,38879.0,38878.0,8.56196958]
[1646598543685,2.8865475,38879.0,38878.0,8.17560258]
[1646598544289,2.8865475,38879.0,38878.0,7.78779618]
[1646598544485,2.8761455,38879.0,38878.0,7.78779618]
[1646598544686,2.8761455,38879.0,38878.0,7.40140318]
[1646598546343,2.8761455,38879.0,38878.0,7.01504918]
[1646598546944,2.8761455,38879.0,38878.0,6.62867818]
[1646598547339,2.93925374,38879.0,38878.0,6.62867818]
[1646598547540,2.93925374,38879.0,38878.0,6.24230518]
[1646598547740,3.09405374,38879.0,38878.0,4.8672823]
[1646598547941,3.10013931,38879.0,38878.0,4.1947077]
[1646598548143,3.20254524,38879.0,38878.0,4.1947077]
[1646598548542,3.20254524,38879.0,38878.0,3.8083007]
[1646598548942,3.20254524,38879.0,38878.0,3.7438947]
[1646598549141,3.20254524,38879.0,38878.0,3.3575007]
[1646598549545,3.20254524,38879.0,38878.0,2.9711107]
[1646598550190,3.20254524,38879.0,38878.0,2.5847207]
[1646598550586,3.20254524,38879.0,38878.0,2.1983307]
[1646598551188,3.20254524,38879.0,38878.0,1.51715627]
[1646598551387,3.19754524,38879.0,38878.0,1.51715627]
[1646598551892,2.05794113,38878.0,38861.0,0.01285]
[1646598552100,0.7867,38866.0,38861.0,0.01285]
[1646598552293,0.00025771,38862.0,38851.0,0.2499999]
[1646598552489,0.173998,38861.0,38851.0,0.2499999]
[1646598552890,0.173998,38861.0,38853.0,0.1557425]
[1646598553093,0.064416,38858.0,38853.0,0.1557425]
[1646598553294,0.67252,38867.0,38853.0,0.1557425]
[1646598553295,0.0517,38864.0,38857.0,0.41039548]
[1646598553493,0.89583,38877.0,38858.0,0.56480795]
[1646598553692,0.0517,38874.0,38867.0,0.17337807]
[1646598553937,0.008,38870.0,38867.0,0.3633678]
[1646598554136,0.122298,38869.0,38865.0,0.07084434]
[1646598554337,0.064383,38869.0,38865.0,0.07084434]
[1646598554741,0.008,38870.0,38865.0,0.07084434]
[1646598555137,0.77163,38873.0,38868.0,0.15247092]
[1646598555336,0.064378,38871.0,38866.0,0.16882028]
[1646598555536,0.064378,38871.0,38866.0,0.16902901]
[1646598555736,0.122298,38870.0,38866.0,0.16902901]
[1646598556539,0.064378,38871.0,38865.0,0.07084434]
[1646598556738,0.122298,38870.0,38866.0,0.00020872]
[1646598556940,0.122298,38869.0,38866.0,0.00020872]
[1646598557139,0.064382,38869.0,38866.0,0.00020872]
[1646598557791,0.064382,38869.0,38866.0,0.00020873]
[1646598558390,0.068377,38871.0,38866.0,0.00020873]
[1646598558593,0.122298,38870.0,38866.0,0.00020873]
[1646598558990,0.068377,38871.0,38866.0,0.00020872]
[1646598559196,0.122298,38870.0,38866.0,0.00020872]
[1646598560000,0.005,38871.0,38865.0,0.20042506]
[1646598560195,0.005,38871.0,38866.0,0.00020113]
[1646598560597,0.064381,38869.0,38866.0,0.00020113]
[1646598560795,0.005,38871.0,38866.0,0.00020113]
[1646598561000,0.005,38871.0,38867.0,0.21350444]
[1646598561201,0.005,38871.0,38868.0,0.79513648]
[1646598561454,0.77163,38873.0,38868.0,0.79513648]
[1646598561455,0.77163,38873.0,38868.0,0.064361]
[1646598561652,0.77163,38873.0,38869.0,0.384741]
[1646598562052,0.77563,38873.0,38868.0,0.064361]
[1646598562454,0.77563,38873.0,38865.0,0.32916287]
[1646598562659,0.064377,38872.0,38869.0,0.00020112]
[1646598563757,0.064377,38872.0,38865.0,0.20042506]
[1646598563956,0.064377,38872.0,38869.0,0.00019379]
[1646598564856,0.064377,38872.0,38865.0,0.20042506]
[1646598565084,0.064382,38870.0,38869.0,0.00019379]
[1646598565289,0.18668,38870.0,38869.0,0.00019379]
[1646598565488,0.23838,38870.0,38869.0,0.00019379]
[1646598566086,0.23838,38870.0,38860.0,0.16744903]
[1646598566289,0.064392,38862.0,38857.0,0.06439181]
[1646598566491,0.122298,38861.0,38857.0,0.06439181]
[1646598567487,0.122298,38861.0,38857.0,0.06458597]
[1646598568490,0.122298,38861.0,38858.0,0.15808017]
[1646598568843,0.122298,38861.0,38857.0,0.19336128]
[1646598569047,0.122298,38863.0,38857.0,0.19336128]
[1646598569642,0.122298,38863.0,38857.0,0.19316712]
[1646598569843,0.122298,38863.0,38858.0,0.00019415]
[1646598570547,0.064393,38862.0,38858.0,0.00019415]
[1646598570742,0.122298,38861.0,38858.0,0.00019415]
[1646598570944,0.122298,38861.0,38857.0,0.19316712]
[1646598570945,0.12219817,38861.0,38857.0,0.19316712]
[1646598571143,0.12219817,38861.0,38858.0,0.00019413]
[1646598572249,0.064399,38859.0,38858.0,0.00019413]
[1646598572447,0.238282,38859.0,38858.0,0.00019413]
[1646598573103,0.23853971,38859.0,38858.0,0.00019413]
[1646598573303,0.64167116,38859.0,38845.0,0.19840009]
[1646598573502,0.64167116,38859.0,38844.0,0.1174]
[1646598573503,0.064417,38856.0,38844.0,0.1174]
[1646598573700,0.173883,38855.0,38841.0,0.1288263]
[1646598573901,0.064416,38851.0,38841.0,0.1288263]
[1646598574501,0.186602,38850.0,38842.0,0.21953703]
[1646598574707,0.122183,38848.0,38844.0,0.00019416]
[1646598574908,0.52496938,38847.0,38844.0,0.00019416]
[1646598575103,0.122183,38846.0,38844.0,0.00019416]
[1646598575303,0.58273038,38845.0,38844.0,0.00019416]
[1646598575707,0.064433,38844.0,38836.0,0.06083973]
[1646598575904,0.064433,38844.0,38833.0,0.27889984]
[1646598575905,0.58273038,38843.0,38833.0,0.27889984]
[1646598576104,0.58273038,38843.0,38840.0,0.20660813]
[1646598576105,0.064433,38842.0,38840.0,0.20660813]
[1646598576338,0.122183,38841.0,38840.0,0.20660813]
[1646598580507,0.147203,38841.0,38840.0,0.20660813]
[1646598582310,0.147203,38841.0,38839.0,0.24965614]
[1646598582913,0.147203,38841.0,38839.0,0.06441958]
[1646598583114,0.6467,38860.0,38839.0,2.3152891]
[1646598583321,0.48268268,38862.0,38852.0,0.15]
[1646598583521,0.77163,38861.0,38855.0,0.02582]
[1646598583714,0.77163,38861.0,38860.0,0.560822]
[1646598583952,0.0022,38881.0,38861.0,1.510822]
[1646598584160,0.0022,38881.0,38875.0,0.36160605]
[1646598584553,0.0022,38881.0,38877.0,0.06435082]
[1646598585157,0.0022,38881.0,38866.0,0.40884738]
[1646598585351,0.0022,38881.0,38865.0,1.12034738]
[1646598585562,0.0022,38881.0,38853.0,0.2499999]
[1646598585563,0.2,38859.0,38824.0,0.02953698]
[1646598585759,1.1,38869.0,38829.0,0.06045989]
[1646598585760,0.15,38847.0,38829.0,0.06045989]
[1646598585957,0.7867,38857.0,38820.0,0.2097111]
[1646598585958,0.6467,38830.0,38820.0,0.2097111]
[1646598586157,0.13719692,38826.0,38812.0,0.27693586]
[1646598586357,0.6467,38821.0,38806.0,0.2097111]
[1646598586563,0.1135396,38817.0,38807.0,0.01288]
[1646598586756,0.1135396,38817.0,38805.0,0.01288]
[1646598586757,0.6467,38812.0,38805.0,0.01288]
[1646598586957,0.6467,38812.0,38800.0,1.15774479]
[1646598586958,0.6467,38808.0,38800.0,1.15774479]
[1646598587157,0.46054738,38807.0,38800.0,1.15774479]
[1646598587357,0.1,38801.0,38800.0,1.04603847]
[1646598587603,1.57136,38801.0,38800.0,0.48008988]
[1646598587799,0.35529507,38799.0,38796.0,19.0]
[1646598588100,0.11359382,38797.0,38796.0,19.0]
[1646598588300,0.1517,38797.0,38796.0,19.0]
[1646598588504,0.35529507,38799.0,38796.0,20.68587152]
[1646598588505,5.07e-06,38799.0,38796.0,20.68587152]
[1646598588709,0.26371801,38816.0,38808.0,0.21391925]
[1646598588900,0.2109862,38818.0,38816.0,0.385002]
[1646598589102,0.2109862,38828.0,38818.0,0.385002]
[1646598589300,0.2109862,38829.0,38824.0,0.00421896]
[1646598589500,0.40884738,38830.0,38809.0,0.00640809]
[1646598589501,0.00168889,38822.0,38809.0,0.00640809]
[1646598589700,0.21079998,38821.0,38801.0,0.0517]
[1646598589898,0.00168889,38822.0,38802.0,0.385002]
[1646598589899,0.61964736,38820.0,38802.0,0.385002]
[1646598590099,0.61964736,38820.0,38803.0,0.0517]
[1646598590100,0.68411136,38820.0,38803.0,0.0517]
[1646598590301,0.21079998,38819.0,38809.0,0.00017817]
[1646598590601,0.40884738,38818.0,38809.0,0.00017817]
[1646598590801,0.31079998,38817.0,38809.0,0.00017817]
[1646598591000,0.21079998,38815.0,38809.0,0.00017817]
[1646598591202,0.61964736,38816.0,38809.0,0.00017817]
[1646598591451,0.21079998,38815.0,38802.0,0.02582]
[1646598591654,0.61964736,38814.0,38810.0,0.00017817]
[1646598591850,0.40884738,38814.0,38810.0,0.00017817]
[1646598592050,0.00011353,38813.0,38810.0,0.00017817]
[1646598592551,0.00011353,38813.0,38811.0,0.15201605]
[1646598592954,0.00011353,38813.0,38812.0,0.02582]
[1646598594551,0.00011353,38813.0,38811.0,0.00018055]
[1646598594956,0.00011353,38813.0,38797.0,0.16288]
[1646598595199,0.00011353,38813.0,38810.0,0.00018055]
[1646598595500,0.1,38812.0,38810.0,0.00018055]
[1646598595698,0.48915594,38811.0,38810.0,0.00018055]
[1646598595901,0.1,38811.0,38810.0,0.00018055]
[1646598596099,0.1,38811.0,38810.0,0.1546949]
[1646598596301,0.1,38811.0,38810.0,0.15451435]
[1646598596498,0.00011353,38813.0,38810.0,0.15451435]
[1646598596699,0.00011353,38813.0,38809.0,0.00018055]
[1646598597300,0.10011353,38813.0,38811.0,0.02582]
[1646598597501,0.10011353,38813.0,38812.0,0.410822]
[1646598597701,0.00011353,38813.0,38812.0,0.8397803]
[1646598598502,0.00011353,38813.0,38812.0,0.62324724]
[1646598598701,0.00011353,38813.0,38812.0,0.462522]
[1646598599145,0.00011353,38813.0,38812.0,0.07752]
[1646598599546,0.00011353,38813.0,38812.0,0.28376205]
[1646598599747,0.00011353,38813.0,38812.0,0.49007593]
[1646598599947,0.00011353,38813.0,38812.0,0.43837593]
[1646598600149,0.00011353,38813.0,38812.0,0.23213388]
[1646598600349,0.00011353,38813.0,38812.0,0.0475]
[1646598600549,0.00011353,38813.0,38811.0,0.00018044]
[1646598600955,0.10011353,38813.0,38809.0,0.001]
[1646598601147,0.1,38812.0,38810.0,0.0583293]
[1646598601352,0.00011353,38813.0,38811.0,1.660822]
[1646598601555,3.53e-06,38813.0,38812.0,2.15519152]
[1646598601749,3.53e-06,38813.0,38812.0,2.98939152]
[1646598601955,0.3990381,38832.0,38821.0,0.19003892]
[1646598602151,0.3990381,38832.0,38831.0,0.22870854]
[1646598602152,0.3940381,38832.0,38831.0,0.22870854]
[1646598602349,0.0011,38840.0,38839.0,0.18095163]
[1646598602604,0.77351,38840.0,38839.0,0.4824802]
[1646598603000,0.77351,38840.0,38839.0,0.28150526]
[1646598603203,1.16266594,38840.0,38839.0,0.0475]
[1646598603404,0.77351,38840.0,38839.0,0.0475]
[1646598604104,0.77351,38840.0,38839.0,0.38501]
[1646598604404,0.77351,38840.0,38839.0,0.58007329]
[1646598604601,0.77351,38840.0,38839.0,0.68001267]
[1646598604803,0.77351,38840.0,38839.0,0.87751267]
[1646598605001,0.0011,38842.0,38840.0,1.12582]
[1646598605305,0.39135594,38854.0,38840.0,1.12582]
[1646598605306,0.0011,38854.0,38845.0,0.02582]
[1646598605505,0.0011,38854.0,38844.0,1.1]
[1646598605506,0.0011,38854.0,38852.0,0.20251285]
[1646598605701,0.0011,38854.0,38853.0,0.45833]
[1646598605901,0.0011,38854.0,38853.0,0.43251]
[1646598606100,0.0011,38854.0,38853.0,0.0475]
[1646598606344,0.17789,38854.0,38853.0,0.0475]
[1646598606544,0.39466304,38854.0,38853.0,0.0475]
[1646598606745,0.0011,38854.0,38853.0,0.0475]
[1646598607142,0.0011,38854.0,38851.0,0.00019643]
[1646598607344,0.17679,38853.0,38847.0,0.0475]
[1646598607544,0.39356304,38852.0,38847.0,0.0475]
[1646598607746,0.39356304,38852.0,38840.0,0.0475]
[1646598607944,0.39466304,38854.0,38838.0,0.43251]
[1646598608146,0.39466304,38854.0,38839.0,0.38501]
[1646598608344,0.39466304,38854.0,38849.0,0.2000606]
[1646598608546,0.0011,38854.0,38849.0,0.2000606]
[1646598608844,0.0011,38854.0,38850.0,0.00018046]
[1646598609043,0.0023983,38854.0,38851.0,0.0583399]
[1646598609253,0.0023983,38854.0,38852.0,0.43251]
[1646598610300,0.0023983,38854.0,38852.0,0.0475]
[1646598611395,0.0023983,38854.0,38851.0,0.00020334]
[1646598611596,0.17679,38853.0,38851.0,0.00020334]
[1646598611798,0.39106612,38852.0,38851.0,0.00020334]
[1646598612396,0.39106612,38852.0,38842.0,0.0475]
[1646598612600,0.00049293,38845.0,38834.0,0.0475]
[1646598612797,0.00049293,38845.0,38830.0,2.03609005]
[1646598612798,0.064425,38844.0,38830.0,2.03609005]
[1646598612996,0.39155905,38845.0,38830.0,2.03609005]
[1646598613196,0.00049293,38845.0,38831.0,0.15]
[1646598613397,0.00049293,38845.0,38832.0,0.38501]
[1646598613598,0.00049293,38845.0,38843.0,0.20951644]
[1646598613854,0.00049293,38845.0,38844.0,0.20431388]
[1646598614051,0.00049293,38845.0,38844.0,0.58932388]
[1646598614251,0.15849303,38845.0,38844.0,0.58932388]
[1646598614456,0.31649313,38845.0,38844.0,0.58932388]
[1646598615454,0.31649313,38845.0,38844.0,0.38501]
[1646598616254,0.31649313,38845.0,38844.0,0.384968]
[1646598617058,0.31649313,38845.0,38843.0,0.00018933]
[1646598617255,0.005068,38854.0,38853.0,0.28953058]
[1646598617704,0.005068,38854.0,38853.0,0.67449858]
[1646598618905,0.005068,38854.0,38853.0,0.28953058]
[1646598622543,0.37217735,38849.0,38838.0,0.02582]
[1646598622742,0.37217735,38849.0,38839.0,0.449365]
[1646598623643,0.37217735,38849.0,38843.0,0.20709659]
[1646598623844,0.37217735,38849.0,38843.0,0.59206459]
[1646598625510,0.37217735,38849.0,38843.0,0.65645559]
[1646598627111,0.37217735,38849.0,38845.0,0.384968]
[1646598627916,0.04738381,38843.0,38842.0,0.384955]
[1646598628943,0.04738381,38843.0,38842.0,0.55236367]
[1646598629142,0.04738381,38843.0,38842.0,0.384955]
[1646598630143,0.04738381,38843.0,38842.0,0.53998046]
[1646598630945,0.04738381,38843.0,38842.0,0.384955]
[1646598631147,0.04738381,38843.0,38841.0,0.002]
[1646598631148,0.43233881,38843.0,38841.0,0.002]
[1646598631351,0.43233881,38843.0,38832.0,0.15]
[1646598631646,0.39361014,38842.0,38832.0,0.15]
[1646598631847,0.39361014,38842.0,38836.0,0.00020881]
[1646598632890,0.39361014,38842.0,38834.0,0.31601959]
[1646598633091,0.39361014,38842.0,38837.0,0.00020881]
[1646598634190,0.39361014,38842.0,38835.0,0.384955]
[1646598634391,0.39361014,38842.0,38838.0,0.00020881]
[1646598634597,0.44938,38841.0,38838.0,0.00020881]
[1646598634794,0.39361014,38840.0,38838.0,0.00020881]
[1646598635390,0.39361014,38840.0,38820.0,0.278845]
[1646598635391,0.39361014,38840.0,38826.0,0.06014877]
[1646598635592,0.39361014,38840.0,38837.0,0.00020881]
[1646598636446,0.39361014,38840.0,38830.0,0.21631999]
[1646598636649,0.39361014,38842.0,38837.0,0.00020071]
[1646598636847,0.04738381,38843.0,38837.0,0.00020071]
[1646598637648,0.04738381,38843.0,38836.0,0.16615697]
[1646598638045,0.04738381,38843.0,38838.0,0.00020071]
[1646598639047,0.04738381,38843.0,38836.0,0.16615697]
[1646598639246,0.384955,38842.0,38839.0,0.00020071]
[1646598640198,0.04738381,38843.0,38836.0,0.16615697]
[1646598640397,0.04738381,38843.0,38839.0,0.00019436]
[1646598640798,0.00879452,38842.0,38839.0,0.00019436]
[1646598641400,0.00879452,38842.0,38835.0,0.16043526]
[1646598641598,0.40240466,38842.0,38839.0,0.00019436]
[1646598641898,0.00879452,38842.0,38839.0,0.00019436]
[1646598642500,0.00879452,38842.0,38835.0,0.16043526]
[1646598642703,0.00379452,38842.0,38839.0,0.00019436]
[1646598643700,0.00379452,38842.0,38835.0,0.16043526]
[1646598643941,0.39740466,38842.0,38839.0,0.00019475]
[1646598644137,0.00379452,38842.0,38839.0,0.00019475]
[1646598644939,0.00379452,38842.0,38830.0,0.01286]
[1646598645140,0.00379452,38842.0,38839.0,0.00019475]
[1646598645347,0.21410317,38842.0,38839.0,0.00019475]
[1646598645540,0.39361014,38841.0,38839.0,0.00019475]
[1646598646040,0.4,38839.0,38833.0,0.17556257]
[1646598646241,0.21096192,38836.0,38829.0,0.21639112]
[1646598646441,0.21096192,38837.0,38830.0,0.384955]
[1646598647240,0.21096192,38837.0,38830.0,0.55961631]
[1646598647441,0.21096192,38836.0,38830.0,0.384955]
[1646598648003,0.21096192,38836.0,38824.0,0.06036]
[1646598648196,0.21096192,38835.0,38825.0,0.384955]
[1646598648497,0.21096192,38834.0,38825.0,0.384955]
[1646598648698,0.21096192,38834.0,38827.0,0.384955]
[1646598649097,0.00379452,38833.0,38830.0,0.384955]
[1646598649497,0.00379452,38833.0,38831.0,0.16659585]
[1646598649796,0.00379452,38833.0,38832.0,0.384955]
[1646598652138,0.21096192,38835.0,38832.0,0.384955]
[1646598652139,0.00379452,38834.0,38832.0,0.384955]
[1646598653439,0.21475644,38834.0,38832.0,0.384955]
[1646598653638,0.00379452,38834.0,38832.0,0.384955]
[1646598655295,0.00379452,38835.0,38832.0,0.384955]
[1646598655696,0.21475644,38835.0,38832.0,0.384955]
[1646598655901,0.21475644,38835.0,38832.0,0.38515603]
[1646598656097,0.20475644,38835.0,38832.0,0.38515603]
[1646598656299,0.38739444,38838.0,38832.0,0.38515603]
[1646598656300,0.20475644,38836.0,38832.0,0.38515603]
[1646598656895,0.26370241,38837.0,38832.0,0.38515603]
[1646598657097,0.65109685,38836.0,38832.0,0.00020103]
[1646598657300,0.0002338,38831.0,38822.0,0.01286]
[1646598657508,0.0002338,38831.0,38822.0,0.5]
[1646598657701,0.1549388,38831.0,38815.0,0.384955]
[1646598657902,0.45183744,38830.0,38815.0,0.384955]
[1646598658102,0.45183744,38830.0,38819.0,0.37631056]
[1646598658303,0.06444047,38829.0,38819.0,0.37631056]
[1646598658506,0.38739444,38828.0,38820.0,0.384955]
[1646598659370,0.51628086,38828.0,38819.0,0.18024788]
[1646598659971,0.45183686,38828.0,38819.0,0.18024788]
[1646598660571,0.38739444,38828.0,38819.0,0.18024788]
[1646598660771,0.65109685,38828.0,38819.0,0.18024788]
[1646598661577,0.38739444,38828.0,38819.0,0.18024788]
[1646598661973,0.38739444,38828.0,38817.0,0.2125631]
[1646598661974,0.1233,38841.0,38822.0,0.06833451]
[1646598662173,0.002,38834.0,38830.0,0.21295998]
[1646598662594,0.22410681,38833.0,38830.0,0.21295998]
[1646598662794,0.38830534,38832.0,38830.0,0.21295998]
[1646598663194,0.5,38831.0,38830.0,0.21316881]
[1646598663998,0.5,38831.0,38830.0,0.59812381]
[1646598664195,0.5,38831.0,38830.0,0.59791498]
[1646598664394,0.007,38837.0,38830.0,0.59791498]
[1646598664595,0.5,38836.0,38829.0,0.00020883]
[1646598665194,0.5,38836.0,38830.0,0.384955]
[1646598665395,0.5,38836.0,38824.0,0.064421]
[1646598665594,0.19466669,38840.0,38830.0,0.00020883]
[1646598665798,0.99054375,38839.0,38830.0,0.00020883]
[1646598666000,0.75204419,38839.0,38830.0,0.00020883]